bitfinex-derivatives/quotes_SOLF0:USTF0_20251119
["timestamp","ask_amount","ask_price","bid_price","bid_amount"]
[1763586610974,0.04905586,133.35,133.33,0.05369572]
[1763586611183,3.31905586,133.35,133.33,0.05369572]
[1763586612062,0.04905586,133.35,133.33,0.05369572]
[1763586613468,3.31905586,133.35,133.33,0.05369572]
[1763586613669,0.04905586,133.35,133.33,0.05369572]
[1763586614485,3.31905586,133.35,133.33,0.05369572]
[1763586614974,3.31905586,133.35,133.27,7.8104]
[1763586615171,3.27,133.35,133.27,1.05]
[1763586615362,3.27,133.35,133.23,1.05]
[1763586615566,3.27,133.33,133.23,1.05]
[1763586615767,3.27,133.3,133.2,1.05]
[1763586615967,3.27,133.27,133.2,1.05]
[1763586616473,0.04859441,133.25,133.22,0.04717298]
[1763586617476,0.04859441,133.25,133.22,1.09717298]
[1763586617678,3.31859441,133.25,133.22,0.04717298]
[1763586617976,0.04859441,133.25,133.22,0.04717298]
[1763586618179,0.04859441,133.25,133.22,1.09717298]
[1763586618570,3.31859441,133.25,133.22,0.04717298]
[1763586618976,0.04859441,133.25,133.22,0.04717298]
[1763586619370,0.04859441,133.25,133.22,1.09717298]
[1763586619966,0.04859441,133.25,133.22,7.86037298]
[1763586620178,0.04859441,133.25,133.23,1.05]
[1763586621483,0.04859441,133.25,133.24,7.8123]
[1763586621877,3.27,133.33,133.25,1.05]
[1763586622076,3.27,133.33,133.26,1.05]
[1763586622779,0.05312614,133.31,133.28,0.04866012]
[1763586623374,3.27,133.3,133.28,0.04866012]
[1763586623880,0.05312614,133.31,133.28,1.09866012]
[1763586624075,3.32312614,133.31,133.28,0.04866012]
[1763586625279,3.32312614,133.31,133.22,7.8133]
[1763586625579,3.27,133.31,133.22,1.05]
[1763586625787,3.27,133.29,133.14,1.05]
[1763586625977,3.27,133.29,133.16,1.05]
[1763586626176,3.27,133.29,133.19,1.08]
[1763586626382,0.04800044,133.25,133.23,0.05713318]
[1763586626691,0.04800044,133.25,133.23,1.13713318]
[1763586626979,0.04800044,133.25,133.23,0.05713318]
[1763586628490,3.39800044,133.25,133.23,0.05713318]
[1763586628984,3.39800044,133.25,133.17,1.08]
[1763586629184,3.35,133.25,133.17,1.08]
[1763586629888,0.04852167,133.22,133.2,1.13279246]
[1763586630387,0.04852167,133.22,133.2,0.05279246]
[1763586631179,3.39852167,133.22,133.2,0.05279246]
[1763586631379,0.04852167,133.22,133.2,0.05279246]
[1763586632186,0.04852167,133.22,133.2,1.13279246]
[1763586632384,3.35,133.28,133.2,1.13279246]
[1763586632579,3.35,133.28,133.2,1.08]
[1763586632789,3.35,133.28,133.2,7.8439]
[1763586633479,0.05450016,133.25,133.23,0.05254993]
[1763586633679,0.05450016,133.25,133.23,1.13254993]
[1763586633880,0.05450016,133.25,133.23,0.05254993]
[1763586634694,3.40450016,133.25,133.23,0.05254993]
[1763586635086,0.05450016,133.25,133.23,0.05254993]
[1763586635292,3.40450016,133.25,133.23,0.05254993]
[1763586636795,0.05450016,133.25,133.23,0.05254993]
[1763586637392,0.05450016,133.25,133.23,1.13254993]
[1763586638889,0.05450016,133.25,133.24,1.07]
[1763586639191,3.21,133.3,133.23,0.05254993]
[1763586639393,3.21,133.3,133.21,1.07]
[1763586640196,3.26139022,133.27,133.24,0.05015531]
[1763586641790,0.05139022,133.27,133.24,1.12015531]
[1763586642098,0.05139022,133.27,133.25,1.07]
[1763586642597,0.05139022,133.27,133.24,1.12015531]
[1763586643600,0.05139022,133.27,133.25,1.07]
[1763586644301,0.05139022,133.27,133.26,1.07]
[1763586646501,0.05139022,133.27,133.24,0.05015531]
[1763586646705,3.26139022,133.27,133.24,0.05015531]
[1763586649716,0.05139022,133.27,133.24,1.12015531]
[1763586649914,0.05139022,133.27,133.25,1.07]
[1763586650414,0.05139022,133.27,133.26,7.8313]
[1763586651914,0.05139022,133.27,133.26,1.07]
[1763586653206,0.05139022,133.27,133.24,1.12015531]
[1763586653612,3.26139022,133.27,133.24,0.05015531]
[1763586660213,3.21,133.24,133.15,1.07]
[1763586661120,3.21,133.24,133.19,6.7644]
[1763586661423,3.21,133.27,133.2,1.07]
[1763586661624,3.21,133.3,133.2,1.07]
[1763586661921,6.8626,133.32,133.25,1.02]
[1763586662416,3.26421469,133.3,133.27,0.04979343]
[1763586663715,3.26421469,133.3,133.21,1.02]
[1763586663908,3.21,133.3,133.21,1.02]
[1763586664726,3.21,133.3,133.21,7.7837]
[1763586665020,3.25756209,133.27,133.24,0.04984597]
[1763586665210,3.25756209,133.27,133.24,0.04952093]
[1763586666418,0.04756209,133.27,133.24,1.06952093]
[1763586666723,0.04756209,133.27,133.24,7.83182093]
[1763586666923,0.04756209,133.27,133.24,0.04952093]
[1763586666924,3.25756209,133.27,133.24,0.04952093]
[1763586669224,3.25756209,133.27,133.18,1.02]
[1763586669421,10.60819044,133.25,133.18,1.02]
[1763586669623,3.22,133.24,133.18,1.02]
[1763586669828,3.22,133.27,133.18,1.02]
[1763586670128,3.22,133.27,133.21,0.0506622]
[1763586670129,0.05025993,133.24,133.21,0.0506622]
[1763586670517,0.05025993,133.24,133.21,1.1206622]
[1763586670714,0.05025993,133.24,133.23,1.07]
[1763586672118,0.05025993,133.24,133.21,1.1206622]
[1763586672327,3.27025993,133.24,133.21,0.0506622]
[1763586675533,3.27025993,133.24,133.14,1.07]
[1763586675831,3.22,133.24,133.14,1.07]
[1763586676418,3.22,133.19,133.18,0.05696423]
[1763586676617,0.05456683,133.2,133.18,0.05696423]
[1763586677022,3.27456683,133.2,133.18,0.05696423]
[1763586679133,3.27456683,133.2,133.11,1.12]
[1763586679430,3.22,133.2,133.11,1.12]
[1763586680235,3.27039077,133.17,133.14,0.05431362]
[1763586680436,3.27039077,133.17,133.14,0.05640004]
[1763586680929,0.05039077,133.17,133.14,1.23640004]
[1763586681532,3.27039077,133.17,133.14,0.05640004]
[1763586682826,0.05039077,133.17,133.14,1.23640004]
[1763586683227,3.27039077,133.17,133.14,1.23640004]
[1763586683530,3.27039077,133.17,133.14,0.05640004]
[1763586684734,0.05039077,133.17,133.14,1.23640004]
[1763586684936,3.27039077,133.17,133.14,0.05640004]
[1763586690730,0.05039077,133.17,133.14,1.23640004]
[1763586690938,3.30039077,133.17,133.14,0.05640004]
[1763586691636,0.05039077,133.17,133.14,8.00370004]
[1763586691836,0.05039077,133.17,133.15,1.18]
[1763586693239,0.05039077,133.17,133.14,1.23640004]
[1763586697644,3.25,133.24,133.16,1.18]
[1763586698642,3.13,133.2,133.19,0.04952666]
[1763586698844,3.13,133.2,133.18,0.05031232]
[1763586699034,3.18226879,133.2,133.18,0.05031232]
[1763586700447,3.18226879,133.2,133.11,1.14]
[1763586700647,3.13,133.2,133.11,1.14]
[1763586701144,3.13,133.2,133.12,1.19]
[1763586701537,0.04883305,133.17,133.15,0.05013939]
[1763586701946,3.17883305,133.17,133.15,0.05013939]
[1763586703443,0.04883305,133.17,133.15,1.24013939]
[1763586704345,0.04883305,133.17,133.16,1.19]
[1763586704552,3.13,133.24,133.16,1.19]
[1763586705546,0.05605852,133.21,133.19,1.24641231]
[1763586705744,0.05605852,133.21,133.19,1.24066081]
[1763586706656,3.18605852,133.21,133.19,0.05066081]
[1763586706853,0.05605852,133.21,133.19,0.05066081]
[1763586707041,0.05605852,133.21,133.19,1.24066081]
[1763586715852,0.05605852,133.21,133.19,8.00516081]
[1763586716055,0.05605852,133.21,133.2,1.19]
[1763586719863,0.05605852,133.21,133.19,6.81516081]
[1763586719864,0.05605852,133.21,133.19,8.00516081]
[1763586720065,3.18605852,133.21,133.19,0.05066081]
[1763586720265,0.05605852,133.21,133.19,1.24066081]
[1763586721168,2.84281168,133.2,133.19,0.05066081]
[1763586722367,0.05605852,133.21,133.19,0.05066081]
[1763586722563,2.8988702,133.21,133.19,0.05066081]
[1763586722960,6.0288702,133.21,133.19,0.05066081]
[1763586723166,3.13,133.2,133.13,1.19]
[1763586723465,2.84281168,133.16,133.13,1.19]
[1763586723665,2.84281168,133.14,133.09,1.19]
[1763586724165,2.84281168,133.14,133.1,1.19]
[1763586724354,3.18154181,133.13,133.1,0.05783249]
[1763586724556,0.05154181,133.13,133.1,1.24783249]
[1763586724753,3.13,133.19,133.1,1.24783249]
[1763586724962,3.13,133.19,133.1,1.19]
[1763586725667,0.05529881,133.16,133.13,1.24623685]
[1763586727974,3.19,133.23,133.13,1.24623685]
[1763586728167,3.19,133.26,133.15,1.18]
[1763586728373,3.19,133.26,133.2,1.18]
[1763586728968,0.0485027,133.24,133.22,0.04809217]
[1763586729166,0.0485027,133.24,133.22,1.22809217]
[1763586729368,3.19,133.29,133.22,1.22809217]
[1763586729670,3.19,133.27,133.22,0.04809217]
[1763586729865,3.19,133.27,133.19,1.18]
[1763586730165,3.19,133.27,133.19,7.9448]
[1763586730376,0.05248394,133.24,133.22,0.04795457]
[1763586731568,3.24248394,133.24,133.22,0.04795457]
[1763586733266,3.24248394,133.24,133.17,1.18]
[1763586734170,3.24248394,133.24,133.19,0.054046]
[1763586734771,3.24248394,133.24,133.19,1.234046]
[1763586737069,0.05248394,133.24,133.19,1.234046]
[1763586737374,0.05248394,133.24,133.21,1.18]
[1763586744076,0.05248394,133.24,133.22,1.18]
[1763586744275,0.05248394,133.24,133.22,1.2322476]
[1763586744867,3.6526,133.32,133.26,1.13]
[1763586745068,6.8426,133.32,133.26,1.13]
[1763586745473,6.8426,133.32,133.26,7.8908]
[1763586745682,6.8426,133.32,133.27,1.13]
[1763586745981,0.05127563,133.31,133.29,1.13]
[1763586746276,0.04883241,133.31,133.29,1.17839497]
[1763586746886,0.04883241,133.31,133.29,7.93769497]
[1763586747176,3.1,133.38,133.3,1.13]
[1763586748084,0.05335184,133.35,133.33,0.05461138]
[1763586748580,0.05335184,133.35,133.33,1.18461138]
[1763586750782,0.05335184,133.35,133.34,1.13]
[1763586751676,0.05335184,133.35,133.33,0.05461138]
[1763586751677,3.15335184,133.35,133.33,0.05461138]
[1763586753276,3.1,133.34,133.28,1.13]
[1763586753479,3.1,133.32,133.28,1.13]
[1763586754182,0.04979686,133.31,133.29,0.05088505]
[1763586755283,0.04979686,133.31,133.29,1.18088505]
[1763586755870,0.04979686,133.31,133.29,0.05088505]
[1763586755871,3.14979686,133.31,133.29,0.05088505]
[1763586756273,3.1,133.29,133.22,1.13]
[1763586757277,0.05468224,133.27,133.25,1.13]
[1763586757486,0.05468224,133.27,133.24,0.04797629]
[1763586757679,0.05468224,133.27,133.24,1.17797629]
[1763586757883,3.37468224,133.27,133.24,0.04797629]
[1763586758878,0.05468224,133.27,133.24,1.17797629]
[1763586759284,0.05468224,133.27,133.25,1.13]
[1763586761287,10.09485473,133.33,133.26,1.13]
[1763586761487,10.09485473,133.37,133.26,1.13]
[1763586761782,3.32,133.36,133.29,6.7593]
[1763586761982,3.32,133.36,133.29,7.8893]
[1763586762182,3.32,133.36,133.29,1.13]
[1763586762486,3.36828429,133.34,133.31,0.05044919]
[1763586762791,3.37125973,133.34,133.31,0.0528319]
[1763586762997,3.37125973,133.34,133.26,1.13]
[1763586763188,3.32,133.34,133.26,1.13]
[1763586763491,3.32,133.34,133.26,7.8912]
[1763586764093,3.32,133.3,133.29,0.05730855]
[1763586764697,3.37239095,133.31,133.29,0.05730855]
[1763586765383,3.37239095,133.31,133.23,7.9524]
[1763586765582,3.32,133.31,133.23,7.9524]
[1763586765782,3.32,133.31,133.25,1.19]
[1763586766295,0.05686381,133.29,133.27,0.05364749]
[1763586767395,3.37686381,133.29,133.27,0.05364749]
[1763586769998,0.05686381,133.29,133.27,1.24364749]
[1763586770402,0.05686381,133.29,133.27,0.05364749]
[1763586771099,3.37686381,133.29,133.27,0.05364749]
[1763586771797,3.32,133.28,133.2,1.19]
[1763586772291,3.32,133.28,133.21,8.0034]
[1763586772497,3.32,133.28,133.22,1.24]
[1763586772694,0.05250125,133.26,133.24,0.05039187]
[1763586772886,0.05250125,133.26,133.24,1.29039187]
[1763586774201,0.05250125,133.26,133.25,1.24]
[1763586774502,3.32,133.32,133.25,1.24]
[1763586774889,3.32,133.32,133.26,8.0012]
[1763586775090,3.32,133.32,133.26,1.24]
[1763586775290,0.05312185,133.3,133.28,0.05220103]
[1763586775797,0.05312185,133.3,133.28,1.29220103]
[1763586775994,0.05312185,133.3,133.28,8.05200103]
[1763586776800,3.37312185,133.3,133.28,0.05220103]
[1763586777405,0.05312185,133.3,133.28,0.05220103]
[1763586777898,3.37312185,133.3,133.28,0.05220103]
[1763586780005,3.37312185,133.3,133.22,1.24]
[1763586780204,3.32,133.3,133.22,1.24]
[1763586780413,3.32,133.33,133.22,1.24]
[1763586780603,3.32,133.33,133.29,1.24]
[1763586780800,3.32,133.37,133.29,1.24]
[1763586781108,3.36808802,133.34,133.32,0.0518271]
[1763586782300,0.04808802,133.34,133.32,8.0500271]
[1763586782505,0.04808802,133.34,133.33,1.24]
[1763586783813,3.36808802,133.34,133.32,0.0518271]
[1763586784002,0.04808802,133.34,133.32,0.0518271]
[1763586784201,0.04808802,133.34,133.32,1.2918271]
[1763586785003,3.36808802,133.34,133.32,0.0518271]
[1763586786107,0.04808802,133.34,133.32,1.2918271]
[1763586788316,0.04808802,133.34,133.33,1.23]
[1763586789105,30.09872245,133.45,133.33,7.9873]
[1763586789106,3.08,133.4,133.33,7.9873]
[1763586789306,3.08,133.4,133.34,1.23]
[1763586790207,3.13500114,133.38,133.36,0.04975055]
[1763586790414,3.13513028,133.38,133.36,0.04975055]
[1763586791814,0.05513028,133.38,133.36,1.27975055]
[1763586792717,0.05513028,133.38,133.36,0.04975055]
[1763586795415,0.05513028,133.38,133.36,1.27975055]
[1763586795719,0.05513028,133.38,133.36,0.04975055]
[1763586795922,3.13513028,133.38,133.36,0.04975055]
[1763586796225,0.05513028,133.38,133.36,0.04975055]
[1763586796718,0.05513028,133.38,133.36,1.27975055]
[1763586796918,0.05513028,133.38,133.36,0.04975055]
[1763586798425,3.13513028,133.38,133.36,0.04975055]
[1763586800020,0.05513028,133.38,133.36,1.27975055]
[1763586802226,0.05513028,133.38,133.36,8.03555055]
[1763586802524,3.08,133.36,133.27,1.28]
[1763586802719,7.51084334,133.33,133.27,1.28]
[1763586803016,3.08,133.33,133.27,1.28]
[1763586803222,7.51084334,133.33,133.27,1.28]
[1763586803423,0.05622755,133.31,133.29,0.05051659]
[1763586803622,7.51084334,133.3,133.23,1.28]
[1763586803826,3.08,133.27,133.23,1.28]
[1763586804419,7.51084334,133.28,133.23,1.28]
[1763586804618,4.43084334,133.28,133.24,0.05305554]
[1763586804819,0.04966199,133.27,133.24,1.33305554]
[1763586807123,3.08,133.33,133.24,1.33305554]
[1763586807322,3.08,133.33,133.24,1.28]
[1763586807528,3.08,133.33,133.26,1.24]
[1763586808330,3.16782936,133.31,133.28,0.05353959]
[1763586808930,0.05782936,133.31,133.28,1.29353959]
[1763586811025,0.05782936,133.31,133.29,1.24]
[1763586811434,13.71017297,133.38,133.29,1.24]
[1763586811732,13.71017297,133.38,133.31,1.24]
[1763586812334,10.60017297,133.41,133.33,1.24]
[1763586812529,0.04810928,133.36,133.33,1.29112779]
[1763586814125,0.04810928,133.36,133.33,0.05112779]
[1763586814531,0.04810928,133.36,133.33,1.29112779]
[1763586816037,0.04810928,133.36,133.33,8.04882779]
[1763586816345,0.04810928,133.36,133.34,1.24]
[1763586817140,0.04810928,133.36,133.33,1.29112779]
[1763586817742,3.20810928,133.36,133.33,0.05112779]
[1763586818543,0.04810928,133.36,133.33,1.28112779]
[1763586819843,0.04810928,133.36,133.34,1.23]
[1763586821646,0.04810928,133.36,133.34,7.9868]
[1763586821845,0.04810928,133.36,133.35,1.23]
[1763586825050,3.16,133.44,133.37,7.9357]
[1763586825253,13.76017297,133.44,133.3,1.18]
[1763586825454,3.16,133.43,133.3,1.18]
[1763586825862,3.16,133.43,133.34,1.18]
[1763586826151,3.21606107,133.4,133.35,1.23521023]
[1763586826358,3.21606107,133.4,133.36,0.04801043]
[1763586828858,3.21606107,133.4,133.36,1.22801043]
[1763586831269,3.21606107,133.4,133.36,0.04801043]
[1763586831566,3.21606107,133.4,133.23,72.60017297]
[1763586831766,3.16,133.34,133.19,1.23]
[1763586831956,33.10017297,133.35,133.19,1.23]
[1763586831957,3.16,133.31,133.19,1.23]
[1763586832160,3.16,133.31,133.22,6.7629]
[1763586832871,3.21531588,133.28,133.25,0.05491784]
[1763586833664,0.05531588,133.28,133.25,1.28491784]
[1763586836566,3.21531588,133.28,133.25,0.05491784]
[1763586838866,3.16,133.26,133.25,0.05491784]
[1763586840470,3.16,133.26,133.19,1.23]
[1763586841471,3.16,133.23,133.21,0.05155212]
[1763586843677,3.2110293,133.24,133.21,0.05155212]
[1763586843973,0.0510293,133.24,133.21,1.34155212]
[1763586844369,3.2110293,133.24,133.21,0.05155212]
[1763586845778,3.2110293,133.24,133.21,1.34155212]
[1763586845779,0.0510293,133.24,133.21,1.34155212]
[1763586846366,3.2110293,133.24,133.21,0.05155212]
[1763586846773,0.0510293,133.24,133.21,1.34155212]
[1763586847277,3.2110293,133.24,133.21,1.34155212]
[1763586847580,0.0510293,133.24,133.21,1.34155212]
[1763586848873,0.0510293,133.24,133.21,8.10485212]
[1763586849075,3.0910293,133.24,133.21,0.05155212]
[1763586852176,3.0910293,133.24,133.21,1.34155212]
[1763586852377,3.0910293,133.24,133.21,0.05155212]
[1763586853695,3.0910293,133.24,133.16,6.7659]
[1763586853696,3.04,133.23,133.16,6.7659]
[1763586854884,3.04,133.2,133.18,0.0502465]
[1763586856690,3.04,133.2,133.13,6.7675]
[1763586857690,3.04,133.17,133.15,0.05034413]
[1763586861491,5.88564143,133.16,133.15,0.05034413]
[1763586861695,3.04,133.15,133.09,17.28]
[1763586862496,3.04,133.15,133.1,1.45]
[1763586862691,0.05195342,133.14,133.11,1.49743859]
[1763586862990,0.0576759,133.14,133.11,1.50542002]
[1763586863394,0.0576759,133.14,133.13,1.45]
[1763586865289,3.04,133.18,133.14,1.45]
[1763586865687,3.2,133.23,133.14,1.45]
[1763586865988,3.2,133.23,133.14,8.2169]
[1763586866394,3.2,133.19,133.17,0.05644792]
[1763586869188,0.05304527,133.2,133.17,1.50644792]
[1763586870689,0.05304527,133.2,133.17,8.27184792]
[1763586870895,0.05304527,133.2,133.18,1.45]
[1763586873793,0.05304527,133.2,133.18,8.2149]
[1763586874100,3.2,133.26,133.19,1.45]
[1763586875001,3.2,133.26,133.14,6.77421281]
[1763586875002,3.2,133.23,133.21,0.0574674]
[1763586875202,3.25221728,133.23,133.21,0.0574674]
[1763586876702,0.05221728,133.23,133.21,1.5074674]
[1763586883809,0.05221728,133.23,133.22,1.44]
[1763586884511,3.24,133.29,133.24,1.44]
[1763586884901,6.08059002,133.29,133.24,1.44]
[1763586885107,3.24,133.28,133.24,1.44]
[1763586885602,0.05549101,133.27,133.25,1.49444397]
[1763586886005,3.24,133.26,133.25,0.05444397]
[1763586887104,3.24,133.26,133.21,1.44]
[1763586887309,3.24,133.24,133.18,1.44]
[1763586888210,0.05468098,133.22,133.2,1.49608969]
[1763586889512,6.08059002,133.3,133.22,1.39]
[1763586889712,3.24,133.29,133.22,1.39]
[1763586890412,0.05463278,133.27,133.24,0.05394996]
[1763586891015,3.29463278,133.27,133.24,0.05394996]
[1763586894316,3.24,133.25,133.24,0.05394996]
[1763586895214,2.84059002,133.26,133.24,0.05394996]
[1763586895413,0.05463278,133.27,133.24,1.44394996]
[1763586895810,0.05463278,133.27,133.25,1.39]
[1763586896312,0.05463278,133.27,133.26,6.7613]
[1763586896510,6.08059002,133.32,133.27,1.39]
[1763586896915,3.24,133.32,133.28,8.1501]
[1763586897116,3.24,133.32,133.29,1.39]
[1763586897316,2.84059002,133.33,133.29,1.39]
[1763586897317,6.08059002,133.33,133.29,1.39]
[1763586897616,0.05272548,133.32,133.29,1.44413646]
[1763586901323,0.05272548,133.32,133.31,1.39]
[1763586901620,3.24,133.35,133.29,0.05413646]
[1763586902024,3.24,133.35,133.29,1.44413646]
[1763586902415,0.05686202,133.33,133.29,1.44413646]
[1763586902813,0.05686202,133.33,133.31,6.7583]
[1763586903016,0.05686202,133.33,133.31,8.1483]
[1763586903216,3.29686202,133.33,133.29,1.44413646]
[1763586903418,3.29686202,133.33,133.29,8.20383646]
[1763586903613,3.29686202,133.33,133.29,1.44413646]
[1763586904618,3.29686202,133.33,133.29,0.05413646]
[1763586905934,0.05686202,133.33,133.3,1.39]
[1763586906736,0.05686202,133.33,133.32,8.1483]
[1763586907435,0.05686202,133.33,133.3,1.39]
[1763586907728,4.43564702,133.42,133.3,1.39]
[1763586907729,7.58564702,133.39,133.3,1.39]
[1763586908230,3.15,133.38,133.3,1.39]
[1763586908535,3.15,133.38,133.32,8.1378]
[1763586908730,4.43564702,133.35,133.28,1.38]
[1763586908930,3.19951569,133.33,133.3,0.04879021]
[1763586909138,0.04951569,133.33,133.3,1.42879021]
[1763586909735,0.04951569,133.33,133.3,8.18759021]
[1763586909937,0.04951569,133.33,133.31,1.38]
[1763586910124,3.19951569,133.33,133.3,0.04879021]
[1763586911032,0.04951569,133.33,133.3,1.42879021]
[1763586911837,0.04951569,133.33,133.31,1.38]
[1763586913131,3.15,133.4,133.33,1.33]
[1763586913729,3.15,133.4,133.34,1.33]
[1763586914125,0.04996985,133.38,133.36,0.05312501]
[1763586914329,3.19996985,133.38,133.36,0.05312501]
[1763586915331,0.04996985,133.38,133.36,1.38312501]
[1763586919347,0.04996985,133.38,133.36,0.05312501]
[1763586919541,3.19996985,133.38,133.36,0.05312501]
[1763586920042,0.04996985,133.38,133.36,0.05312501]
[1763586921634,0.04996985,133.38,133.36,1.38312501]
[1763586921941,0.04996985,133.38,133.36,0.05312501]
[1763586922333,3.19996985,133.38,133.36,0.05312501]
[1763586924336,0.04996985,133.38,133.36,0.05312501]
[1763586924639,0.04996985,133.38,133.37,1.33]
[1763586926148,3.36,133.44,133.38,8.0349]
[1763586927243,3.41157336,133.42,133.4,0.05107246]
[1763586935854,0.05157336,133.42,133.4,0.05107246]
[1763586937155,3.41157336,133.42,133.4,0.05107246]
[1763586937747,0.05157336,133.42,133.4,0.05107246]
[1763586938450,3.12157336,133.42,133.4,0.05107246]
[1763586939556,3.12157336,133.42,133.36,6.7561]
[1763586939557,3.07,133.41,133.36,6.7561]
[1763586940450,3.07,133.39,133.37,0.05580563]
[1763586943858,3.07,133.37,133.3,8.0893]
[1763586944052,7.50008897,133.34,133.27,1.39]
[1763586944254,3.07,133.34,133.27,1.39]
[1763586944655,3.07,133.33,133.25,1.39]
[1763586944956,0.04968612,133.3,133.28,0.04863725]
[1763586945346,3.11968612,133.3,133.28,0.04863725]
[1763586946051,0.04968612,133.3,133.28,1.43863725]
[1763586947261,3.11968612,133.3,133.28,0.04863725]
[1763586947957,0.04968612,133.3,133.28,0.04863725]
[1763586948264,0.04968612,133.3,133.28,1.43863725]
[1763586948455,0.04968612,133.3,133.28,0.04863725]
[1763586948850,0.04968612,133.3,133.28,1.43863725]
[1763586949065,0.04968612,133.3,133.29,1.39]
[1763586950263,3.11968612,133.3,133.28,0.04863725]
[1763586950957,0.04968612,133.3,133.28,0.04863725]
[1763586952861,0.04968612,133.3,133.28,1.43863725]
[1763586955161,0.04968612,133.3,133.29,8.1498]
[1763586955363,0.04968612,133.3,133.28,0.04863725]
[1763586955561,3.11968612,133.3,133.28,0.04863725]
[1763586960775,5.91085706,133.29,133.28,0.04863725]
[1763586962276,3.07,133.28,133.22,6.7629]
[1763586962475,3.07,133.26,133.21,4.28085706]
[1763586962675,3.07,133.26,133.21,1.44]
[1763586963170,0.05044423,133.25,133.22,1.48785358]
[1763586963373,0.05279258,133.25,133.22,1.48904855]
[1763586964078,0.05279258,133.25,133.24,1.44]
[1763586967875,3.15,133.31,133.27,1.39]
[1763586968083,3.15,133.34,133.28,1.39]
[1763586968281,3.15,133.34,133.3,1.39]
[1763586968580,3.15,133.39,133.32,1.39]
[1763586968778,3.15,133.44,133.35,2.84085706]
[1763586968979,5.99085706,133.42,133.35,4.23085706]
[1763586969178,3.15,133.41,133.32,1.39]
[1763586969376,7.48469014,133.53,133.32,1.39]
[1763586969377,3.15,133.39,133.37,0.04906615]
[1763586969581,3.20091775,133.39,133.37,0.04822654]
[1763586969782,0.05091775,133.39,133.37,0.04822654]
[1763586970783,3.15,133.45,133.39,1.34]
[1763586970980,3.15,133.45,133.4,4.18085706]
[1763586971487,3.15,133.45,133.37,8.0956]
[1763586971784,0.05642311,133.42,133.41,4.18085706]
[1763586971974,0.04857206,133.43,133.42,1.34]
[1763586972387,0.04857206,133.43,133.41,4.18085706]
[1763586972782,0.04857206,133.43,133.41,1.34]
[1763586973392,3.15,133.53,133.42,1.34]
[1763586973586,3.15,133.58,133.44,1.34]
[1763586973792,3.15,133.58,133.49,1.34]
[1763586974180,3.15,133.58,133.47,1.34]
[1763586974489,0.05716376,133.54,133.51,1.39113547]
[1763586974675,3.20716376,133.54,133.51,0.05113547]
[1763586974881,0.05716376,133.54,133.51,1.39113547]
[1763586975082,0.05716376,133.54,133.51,0.05113547]
[1763586975283,3.20716376,133.54,133.51,0.05113547]
[1763586978489,6.74535462,133.58,133.51,0.05113547]
[1763586979094,6.74535462,133.58,133.45,1.34]
[1763586980093,0.05493068,133.53,133.5,0.0493767]
[1763586980695,0.05493068,133.53,133.5,3.4093767]
[1763586981499,3.15,133.6,133.51,3.36]
[1763586982699,0.04757793,133.57,133.54,0.05637968]
[1763586982896,3.19757793,133.57,133.54,0.05637968]
[1763586983596,3.19757793,133.57,133.48,3.36]
[1763586983792,3.15,133.57,133.48,3.36]
[1763586983990,3.15,133.57,133.45,3.36]
[1763586984391,3.15,133.57,133.46,3.36]
[1763586984593,0.05240133,133.53,133.5,0.04883427]
[1763586984798,0.05240133,133.53,133.5,3.40883427]
[1763586989301,3.35240133,133.53,133.5,0.04883427]
[1763586990602,3.3,133.52,133.41,6.74535462]
[1763586990801,3.3,133.52,133.41,3.29]
[1763586991103,3.3,133.51,133.41,3.29]
[1763586991294,6.74535462,133.58,133.46,3.29]
[1763586991498,3.3,133.57,133.46,3.29]
[1763586991698,3.35596074,133.53,133.5,0.04885817]
[1763586995910,0.05596074,133.53,133.5,3.33885817]
[1763586998819,0.05596074,133.53,133.52,3.31]
[1763586999315,0.05596074,133.53,133.5,6.18744293]
[1763586999517,0.05596074,133.53,133.51,3.31]
[1763586999702,0.05596074,133.53,133.5,2.87744293]
[1763586999703,0.05596074,133.53,133.52,6.13858476]